Cogmind - Beta 14 @@@ ROGUE MODE // 2024.08.30 @ 03:38:35 Player: celerysam Result: Destroyed by B-75 Beast with Heavy Plasma Cannon Performance ------------- Evolutions (4) 2000 Regions Visited (7) 1400 Robots Destroyed (31) 155 Value Destroyed (1103) 1103 Prototype IDs (1) 20 Alien Tech Used (0) 0 Bonus (708) 708 TOTAL SCORE: 5386 Bonus ------- High Alert Combat Kills 8 Entered Garrisons 200 Entered DSFs 500 Cogmind --------- Core Integrity 0/850 Matter 220/300 Energy 100/100 System Corruption 6% Temperature Cool (12) Movement Core (50) Location -6/Garrison Parts ------- > --- POWER (2) -------- (None) > --- PROPULSION (6) --- (None) > --- UTILITY (4) ------ (None) > --- WEAPON (3) ------- (None) > --- INVENTORY (5) ---- Micro Nuclear Core Light Angular Momentum Engine Cooling System Authchip [Propulsion] Peak State ------------ > --- POWER ------------ Nuclear Core > --- PROPULSION ------- Titanium Leg Titanium Leg Improved VTOL Module Improved VTOL Module > --- UTILITY ---------- Advanced Heat Sink Compact Matter Pod ECM Suite > --- WEAPON ----------- Gauss Rifle Chainsword > --- INVENTORY -------- Light Angular Momentum Engine Cooling System Authchip [Propulsion] Improved Grenade Launcher [Rating: 35] Favorites ----------- Power Improved Ion Engine Engine Improved Ion Engine Power Core Nuclear Core Propulsion Armored Wheel Leg Titanium Leg Wheel Armored Wheel Hover Unit Hover Unit Flight Unit Improved VTOL Module Utility Small Storage Unit Device ECM Suite Storage Small Storage Unit Weapon Assault Rifle Energy Gun Spread Laser Ballistic Gun Assault Rifle Launcher Improved Grenade Launcher Slashing Weapon Chainsword Special Melee Weapon Datajack Build | -11 -10 -9 -8 -7 -7 -6 -6 ------- Run | Yrd Mat Mat Mat Fac DSF Fac Gar Slots Evolved 8 | . . 2 2 2 . 2 . Power 1 | . . . 1 . . . . Propulsion 4 | . . 2 . 1 . 1 . Utility 2 | . . . 1 1 . . . Weapon 1 | . . . . . . 1 . Parts Attached 80 | 6 4 28 17 5 8 5 7 Power 12 | 1 1 4 1 1 1 2 1 Engine 7 | 1 1 4 1 . . . . Core 5 | . . . . 1 1 2 1 Reactor . | . . . . . . . . Propulsion 36 | 2 2 11 9 4 2 1 5 Treads . | . . . . . . . . Leg 8 | . 2 4 . . 1 1 . Wheel 7 | 2 . 4 . 1 . . . Hover 4 | . . 3 . . . . 1 Flight 17 | . . . 9 3 1 . 4 Utility 11 | 1 1 3 4 . 1 1 . Device 9 | . 1 3 4 . . 1 . Storage 2 | 1 . . . . 1 . . Processor . | . . . . . . . . Hackware . | . . . . . . . . Protection . | . . . . . . . . Artifact . | . . . . . . . . Weapon 21 | 2 . 10 3 . 4 1 1 Energy Gun 8 | 1 . 6 1 . . . . Energy Cannon . | . . . . . . . . Ballistic Gun 6 | 1 . 2 . . 3 . . Ballistic Cannon . | . . . . . . . . Launcher 4 | . . 2 1 . . . 1 Special Weapon . | . . . . . . . . Impact Weapon . | . . . . . . . . Slashing Weapon 2 | . . . . . 1 1 . Piercing Weapon . | . . . . . . . . Special Melee Weapon 1 | . . . 1 . . . . Unidentified Prototypes 1 | . . . 1 . . . . Parts Lost 39 | . 2 10 5 . 4 1 17 Power 7 | . . 2 2 . 1 . 2 Propulsion 17 | . 1 5 1 . 1 . 9 Utility 6 | . . 1 1 . 1 . 3 Weapon 9 | . 1 2 1 . 1 1 3 Highest Loss Streak 10 | . 1 5 5 . 4 1 10 To Critical Strikes . | . . . . . . . . Average Slot Usage (%) 78 | . 96 95 85 54 56 54 43 Engine 7 | . 14 10 12 . . . . Leg 8 | . 14 10 1 . 1 12 7 Wheel 12 | . 12 23 . 4 . . . Hover 4 | . . 8 . . . . 1 Flight 7 | . . . 33 26 22 13 9 Device 9 | . 11 10 12 7 7 6 8 Storage 9 | . 14 11 9 7 10 6 4 Energy Gun 8 | . 14 11 9 7 2 . . Ballistic Gun 6 | . 14 6 . . 6 10 . Launcher 1 | . . 2 4 . . . . Slashing Weapon 1 | . . . . . . 1 5 Peak Build Rating 35 | 6 8 24 31 31 34 35 35 Average Rating 18 | 3 6 16 25 21 24 27 22 On Entrance 18 | . 6 7 23 19 31 23 35 Naked Turns 10 | . . . . . . . 10 Heaviest Build 22 | 14 17 22 20 16 20 18 20 Greatest Support 68 | 20 20 68 34 25 25 34 34 Greatest Overweight (x) 1 | . . 1 1 . 1 . 1 Average Overweight (x) . | . . . . . . . . Largest Inventory Capacity 8 | 8 8 8 8 8 8 5 5 Average Capacity 7 | 6 8 8 8 8 6 5 5 Most Carried 8 | 8 8 8 8 8 8 5 5 Average Carried 6 | 4 6 7 7 7 5 4 4 Final Capacity 8 | 8 8 8 8 8 5 5 5 Final Carried 8 | 6 8 7 8 7 5 4 4 Class Distribution -------------------- 89% | Mutant 10% | Sprinter Dominant Class ---------------- Mutant | -10/Materials Mutant | -9/Materials Sprinter | -8/Materials Mutant | -7/Factory Mutant | -7/DSF Mutant | -6/Factory Mutant | -6/Garrison Resources | -11 -10 -9 -8 -7 -7 -6 -6 ----------- Run | Yrd Mat Mat Mat Fac DSF Fac Gar Matter Collected 977 | 260 64 321 4 . 146 112 70 Remotely . | . . . . . . . . Salvage Created 1027 | . 110 622 . . 45 112 138 Parts 67 | . 2 46 . . . 5 14 Haulers Intercepted . | . . . . . . . . Recyclers Shooed . | . . . . . . . . Parts Field Recycled . | . . . . . . . . Retrieved Matter . | . . . . . . . . Parts Self-Destructed . | . . . . . . . . Prevented . | . . . . . . . . Kills | -11 -10 -9 -8 -7 -7 -6 -6 ------- Run | Yrd Mat Mat Mat Fac DSF Fac Gar Combat Hostiles Destroyed 30 | . 2 19 . . . 2 7 Melee 4 | . . . . . . 2 2 Guns 16 | . 2 14 . . . . . AOE 10 | . . 5 . . . . 5 Classes Destroyed 6 | . 1 4 . . . . 1 Watcher 1 | . . 1 . . . . . Swarmer 10 | . . 4 . . . . 6 Grunt 12 | . 2 8 . . . 2 . Duelist 2 | . . 2 . . . . . Sentry 5 | . . 5 . . . . . Programmer 1 | . . . . . . . 1 Best Kill Streak 6 | . 1 6 . . . 2 5 Combat Bots Only 6 | . 1 6 . . . 2 5 Max Kills in Single Turn 5 | . 1 2 . . . 1 5 Gunslinging . | . . . . . . . . Exploded 5 | . . 2 . . . . 5 Melee 1 | . . . . . . 1 1 Uniques/NPCs Destroyed . | . . . . . . . . Combat | -11 -10 -9 -8 -7 -7 -6 -6 -------- Run | Yrd Mat Mat Mat Fac DSF Fac Gar Hostile Shots Fired 492 | . 33 147 56 4 53 31 168 Missed 178 | . 8 39 23 1 18 16 73 Damage Taken 5313 | . 361 1536 656 35 993 302 1430 Core 2189 | . 76 357 321 . 562 113 760 Absorbed by Shields 215 | . . . . . 207 . 8 Core Remaining (%) 47 | 100 69 10 41 . 19 . . Volleys Fired 84 | . 14 48 6 . 9 6 1 Largest 2 | . 2 2 1 . 1 2 1 Hottest 121 | . 60 121 63 . 28 53 36 Shots Fired 129 | . 28 76 6 . 9 9 1 Gun 124 | . 28 72 6 . 9 9 . Cannon . | . . . . . . . . Launcher 5 | . . 4 . . . . 1 Special . | . . . . . . . . Kinetic 60 | . 14 28 . . 9 9 . Thermal 50 | . . 44 6 . . . . Explosive 5 | . . 4 . . . . 1 Electromagnetic 14 | . 14 . . . . . . Robot Hit Streak 13 | . 4 13 2 . 4 5 . Robot Miss Streak 9 | . 3 9 2 . 3 4 . Penetration Max . | . . . . . . . . Secondary Targets 1 | . . 1 . . . . . Max Gunslinging Chain 1 | . . 1 . . . . . Shots Hit Robots 94 | . 17 54 3 . 5 11 4 Core Hits 83 | . 5 62 1 . 1 5 9 Critical Kills . | . . . . . . . . Critical Parts Destroyed 1 | . . 1 . . . . . Critical Strikes 3 | . . 3 . . . . . Burn 2 | . . 2 . . . . . Destroy 1 | . . 1 . . . . . Melee Attacks 12 | . . . . . . 4 8 Impact . | . . . . . . . . Slashing 12 | . . . . . . 4 8 Piercing . | . . . . . . . . Sneak Attacks . | . . . . . . . . Combat Hostiles . | . . . . . . . . Follow-up Attacks . | . . . . . . . . Damage Inflicted 2292 | . 261 1173 52 . 109 272 425 Guns 1257 | . 220 734 52 . 109 142 . Cannons . | . . . . . . . . Explosions 708 | . 41 432 . . . . 235 Melee 292 | . . . . . . 130 162 Ramming 35 | . . 7 . . . . 28 Kinetic 600 | . 110 239 . . 109 142 . Thermal 588 | . 41 495 52 . . . . Explosive 591 | . . 356 . . . . 235 Electromagnetic 186 | . 110 76 . . . . . Impact . | . . . . . . . . Slashing 292 | . . . . . . 130 162 Piercing . | . . . . . . . . Highest Corruption 6 | . . . 4 1 4 . 6 Average Corruption 2 | . . . 4 1 2 . 1 Corruption Purged . | . . . . . . . . Corruption Blocked . | . . . . . . . . Effects 7 | . . . 2 . 4 . 1 Message Errors 1 | . . . . . 1 . . Matter Fused 2 | . . . . . 1 . 1 Heat Flow Errors 1 | . . . . . 1 . . Energy Discharges 1 | . . . 1 . . . . Parts Rejected 1 | . . . . . 1 . . Alerts 1 | . . . 1 . . . . Overload Shots . | . . . . . . . . Overflow Damage 4 | . . . . . . . 4 Projectiles . | . . . . . . . . Explosions 4 | . . . . . . . 4 Melee . | . . . . . . . . Knockbacks . | . . . . . . . . Impact . | . . . . . . . . Kinetic . | . . . . . . . . Secondary . | . . . . . . . . Self-Inflicted Damage 125 | . 47 40 . . . . 38 Shots 4 | . 1 2 . . . . 1 Rammed 9 | . . 1 . . . . 8 Targets Rammed 10 | . . 2 . . . . 8 Kicked 1 | . . 1 . . . . . Crushed . | . . . . . . . . Highest Temperature 287 | . 75 287 13 . 250 . . Average Temperature 85 | . 41 104 6 . 150 . . Received Heat Transfer 1191 | . 198 549 135 . . 129 180 Effects 6 | . . 6 . . . . . Energy Bleed 2 | . . 2 . . . . . Interference 4 | . . 4 . . . . . Siege Activations . | . . . . . . . . Robots Corrupted . | . . . . . . . . Combat Hostiles . | . . . . . . . . Parts Fried . | . . . . . . . . Impact Corruptions . | . . . . . . . . Robots Melted . | . . . . . . . . Combat Hostiles . | . . . . . . . . Parts Melted 2 | . . 2 . . . . . Heat Transferred 1109 | . 50 948 111 . . . . Parts Sabotaged . | . . . . . . . . Parts Stolen . | . . . . . . . . Parts Stripped . | . . . . . . . . Power Chain Reactions 1 | . 1 . . . . . . Alert | -11 -10 -9 -8 -7 -7 -6 -6 ------- Run | Yrd Mat Mat Mat Fac DSF Fac Gar Peak Influence 435 | . 74 435 228 95 71 50 245 Initial 183 | . . 26 183 80 66 37 51 Average 135 | . 46 203 191 84 54 12 110 Maximum Alert Level 2 | . . 2 1 . . . 1 Low Security (%) 72 | 100 100 47 79 100 100 100 85 Level 1 23 | . . 43 20 . . . 14 Level 2 3 | . . 8 . . . . . Level 3 . | . . . . . . . . Level 4 . | . . . . . . . . Level 5 . | . . . . . . . . High Security . | . . . . . . . . Max Security . | . . . . . . . . Squads Dispatched 8 | . 2 2 1 . 2 1 . Investigation 1 | . 1 . . . . . . Extermination . | . . . . . . . . Reinforcement 7 | . 1 2 1 . 2 1 . Assault . | . . . . . . . . Garrison . | . . . . . . . . Intercept . | . . . . . . . . Searches Triggered . | . . . . . . . . Construction Impeded . | . . . . . . . . Haulers Reinforced . | . . . . . . . . Active Scanning Responses . | . . . . . . . . Cargo Convoy Interrupts . | . . . . . . . . Stealth | -11 -10 -9 -8 -7 -7 -6 -6 --------- Run | Yrd Mat Mat Mat Fac DSF Fac Gar Distress Signals 3 | . 1 1 1 . . . . Communications Jammed . | . . . . . . . . Distress Signals . | . . . . . . . . Times Spotted 86 | . 7 30 13 1 10 4 21 Peak Tracking Total 10 | . 4 6 8 1 6 3 10 Tactical Retreats 11 | . 1 . 1 . 1 . 8 Traps | -11 -10 -9 -8 -7 -7 -6 -6 ------- Run | Yrd Mat Mat Mat Fac DSF Fac Gar Traps Triggered 11 | . 1 . . 1 7 . 2 Indirectly . | . . . . . . . . Trap Hack Attempts . | . . . . . . . . Triggered . | . . . . . . . . Disarmed . | . . . . . . . . Reprogrammed . | . . . . . . . . Reused . | . . . . . . . . Traps Extracted . | . . . . . . . . Installed . | . . . . . . . . Triggered . | . . . . . . . . Machines | -11 -10 -9 -8 -7 -7 -6 -6 ---------- Run | Yrd Mat Mat Mat Fac DSF Fac Gar Machines Disabled 4 | . . 3 . . 1 . . Max in Single Turn 2 | . . 2 . . 1 . . Machines Repaired . | . . . . . . . . Machines Dismantled . | . . . . . . . . Machines Sabotaged . | . . . . . . . . Overloaded Fab Kills . | . . . . . . . . Hacking | -11 -10 -9 -8 -7 -7 -6 -6 --------- Run | Yrd Mat Mat Mat Fac DSF Fac Gar Machines Accessed 6 | . . 1 . 1 . 2 2 Terminals 5 | . . 1 . 1 . 1 2 Fabricators . | . . . . . . . . Repair Stations . | . . . . . . . . Recycling Units . | . . . . . . . . Scanalyzers . | . . . . . . . . Garrison Access 1 | . . . . . . 1 . Total Hacks 8 | . . 1 . 1 . 2 4 Successful 4 | . . . . 1 . 2 1 Failed 4 | . . 1 . . . . 3 Catastrophic 1 | . . . . . . . 1 Database Lockouts . | . . . . . . . . Manual . | . . . . . . . . Terminals 7 | . . 1 . 1 . 1 4 Fabricators . | . . . . . . . . Repair Stations . | . . . . . . . . Recycling Units . | . . . . . . . . Scanalyzers . | . . . . . . . . Garrison Access 1 | . . . . . . 1 . Terminal Hacks 3 | . . . . 1 . 1 1 Open DSF 1 | . . . . 1 . . . Unreport Threat 1 | . . . . . . 1 . Garrison Registry 1 | . . . . . . . 1 Fabricator Hacks . | . . . . . . . . Repair Station Hacks . | . . . . . . . . Recycling Unit Hacks . | . . . . . . . . Scanalyzer . | . . . . . . . . Garrison Access Hacks 1 | . . . . . . 1 . Unlock Access 1 | . . . . . . 1 . Unauthorized Hacks . | . . . . . . . . Terminals . | . . . . . . . . Fabricators . | . . . . . . . . Repair Stations . | . . . . . . . . Recycling Units . | . . . . . . . . Scanalyzers . | . . . . . . . . Garrison Access . | . . . . . . . . Data Cores Recovered . | . . . . . . . . Used . | . . . . . . . . Hacking Detections 3 | . . . . . . 2 1 Full Trace Events 1 | . . . . . . . 1 Feedback Events . | . . . . . . . . Feedback Blocked . | . . . . . . . . Robot Schematics Acquired . | . . . . . . . . Robots Built . | . . . . . . . . Authchips . | . . . . . . . . Time . | . . . . . . . . Total Robot Build Rating . | . . . . . . . . Part Schematics Acquired . | . . . . . . . . Parts Built . | . . . . . . . . Authchips . | . . . . . . . . Time . | . . . . . . . . Total Part Build Rating . | . . . . . . . . Parts Repaired . | . . . . . . . . Time . | . . . . . . . . Parts Recycled . | . . . . . . . . Recycled Matter . | . . . . . . . . Retrieved Matter . | . . . . . . . . Retrieved Components . | . . . . . . . . Parts Scanalyzed . | . . . . . . . . Part Schematics Acquired . | . . . . . . . . Parts Damaged . | . . . . . . . . Bothacking | -11 -10 -9 -8 -7 -7 -6 -6 ------------ Run | Yrd Mat Mat Mat Fac DSF Fac Gar Used RIF Installer . | . . . . . . . . Robots Hacked . | . . . . . . . . Non-combat . | . . . . . . . . Combat . | . . . . . . . . Robot Hacks Applied . | . . . . . . . . Relay Couplers Released . | . . . . . . . . Fabnet Peak Effective % . | . . . . . . . . Robots Rewired . | . . . . . . . . Allies Hacked . | . . . . . . . . Hacks Repelled . | . . . . . . . . Allies | -11 -10 -9 -8 -7 -7 -6 -6 -------- Run | Yrd Mat Mat Mat Fac DSF Fac Gar Total Allies . | . . . . . . . . Largest Group . | . . . . . . . . Highest-Rated Group . | . . . . . . . . Highest-Rated Ally . | . . . . . . . . Total Orders . | . . . . . . . . Ally Attacks . | . . . . . . . . Total Damage . | . . . . . . . . Kills . | . . . . . . . . Allies Corrupted . | . . . . . . . . Allies Melted . | . . . . . . . . Intel | -11 -10 -9 -8 -7 -7 -6 -6 ------- Run | Yrd Mat Mat Mat Fac DSF Fac Gar Robot Analysis Total . | . . . . . . . . Derelict Logs Recovered . | . . . . . . . . Drone Launches . | . . . . . . . . Drone Recoveries . | . . . . . . . . Exploration | -11 -10 -9 -8 -7 -7 -6 -6 ------------- Run | Yrd Mat Mat Mat Fac DSF Fac Gar Turns Passed 1721 | 55 187 770 128 53 139 129 260 Spaces Moved 1738 | 50 122 635 261 130 121 158 261 Core 20 | 7 . . . . . . 13 Treads . | . . . . . . . . Legs 287 | . 66 92 3 . 11 17 98 Wheels 507 | 43 56 406 . 2 . . . Hover 137 | . . 137 . . . . . Flight 787 | . . . 258 128 110 141 150 Fastest Speed 23 | 50 80 62 26 23 23 42 26 Average Speed 68 | 75 101 89 28 34 48 59 71 Slowest Speed 200 | 80 120 130 130 80 200 130 130 Overloaded Moves . | . . . . . . . . Propulsion Burnouts . | . . . . . . . . Robots Hopped 3 | . . . 1 . 1 . 1 Cave-ins Triggered . | . . . . . . . . Exploration Rate (%) 30 | 4 32 48 27 5 89 5 35 Regions Visited 7 Branch Regions . Pre-discovered Areas . | . . . . . . . . Known Exits Taken 2 | . . . . 1 . 1 . Unknown Exits Taken 4 | 1 1 1 1 . . . . Scrap Searched . | . . . . . . . . Spaces Dug . | . . . . . . . . Terrain Destroyed 52 | . 3 35 . . . . 14 Melee . | . . . . . . . . Projectile . | . . . . . . . . AOE 52 | . 3 35 . . . . 14 Terrain Rammed . | . . . . . . . . Walls Destroyed . | . . . . . . . . Machines Disabled . | . . . . . . . . Actions | -11 -10 -9 -8 -7 -7 -6 -6 --------- Run | Yrd Mat Mat Mat Fac DSF Fac Gar Total 2112 | 66 159 758 308 137 189 177 318 Wait 39 | . 4 14 7 . . . 14 Move 1725 | 49 121 634 258 129 118 158 258 Hop 3 | . . . 1 . 1 . 1 Pick Up 53 | 11 10 17 6 1 3 2 3 Fast Attach 26 | 1 . 7 6 2 4 2 4 Attach 31 | 5 2 10 1 3 4 3 3 Detach 4 | . . . 1 1 1 1 . Swap 23 | . 2 11 10 . . . . Drop 35 | . 6 15 12 1 . 1 . Fire 84 | . 14 48 6 . 9 6 1 Melee 12 | . . . . . . 4 8 Ram 9 | . . 1 . . . . 8 Kick 1 | . . 1 . . . . . Crush . | . . . . . . . . Escape Stasis 67 | . . . . . 49 . 18 Rewire . | . . . . . . . . Trap . | . . . . . . . . Miscellaneous . | . . . . . . . . Route ------- -11/Scrapyard -10/Materials (discovered 2 exits: *Mat / [*Min]) -9/Materials (discovered 2 exits: [*Mat] / [*Min]) -8/Materials -7/Factory -7/DSF -6/Factory -6/Garrison (discovered 3 exits: [*Fac x3]) History --------- Turn | Location | Event 7 | -11/Scrapyard | Discovered new exit (range 16) 56 | -11/Scrapyard | Entered Materials 226 | -10/Materials | Discovered new exit (range 14) 229 | -10/Materials | Discovered new exit (range 9) 243 | -10/Materials | Entered another Materials area 243 | -9/Materials | Evolved 2 slots: Propulsion x2 302 | -9/Materials | Build established: Mutant 309 | -9/Materials | Discovered new exit (range 7) 533 | -9/Materials | Lost 5 parts (1p2n1u1w) 830 | -9/Materials | Core integrity fell below 50% 857 | -9/Materials | Core integrity fell below 20% 879 | -9/Materials | Lost 3 parts (2n1w) 967 | -9/Materials | Discovered new exit (range 5) 1013 | -9/Materials | Entered another Materials area 1013 | -8/Materials | Evolved 2 slots: Power x1, Utility x1 1113 | -8/Materials | Discovered new exit (range 4) 1141 | -8/Materials | Core integrity fell below 50% 1141 | -8/Materials | Entered Factory 1141 | -7/Factory | Evolved 2 slots: Propulsion x1, Utility x1 1162 | -7/Factory | Lost 5 parts (2p1n1u1w) 1194 | -7/Factory | Identified exit to DSF 1194 | -7/Factory | Entered DSF 1227 | -7/DSF | Additional patrols routed to DSF 1249 | -7/DSF | Core integrity fell below 50% 1304 | -7/DSF | Lost 4 parts (1p1n1u1w) 1327 | -7/DSF | Discovered new exit (range 15) 1330 | -7/DSF | Core integrity fell below 20% 1333 | -7/DSF | Entered Factory 1333 | -6/Factory | Evolved 2 slots: Propulsion x1, Weapon x1 1404 | -6/Factory | Spotted B-75 Beast 1462 | -6/Factory | Identified exit to Garrison 1462 | -6/Factory | Entered Garrison 1580 | -6/Garrison | Spotted B-75 Beast 1646 | -6/Garrison | Triggered checkpoint 1661 | -6/Garrison | Discovered new exit (range 12) 1673 | -6/Garrison | Lost 10 parts (1p5n3u1w) 1674 | -6/Garrison | Core integrity fell below 50% 1679 | -6/Garrison | Attempted to access garrison exit controls, blocked by remote lockdown 1704 | -6/Garrison | Discovered new exit (range 65) 1704 | -6/Garrison | Discovered new exit (range 25) 1704 | -6/Garrison | Discovered new exit (range 84) 1717 | -6/Garrison | Core integrity fell below 20% 1720 | -6/Garrison | Triggered checkpoint 1722 | -6/Garrison | Destroyed by B-75 Beast with Heavy Plasma Cannon Last Messages --------------- 01690_ Lgt. Nuclear Core destroyed. 01692_ VTOL Module destroyed. 01704_ Connecting with Garrison Terminal... 01704_ EXIT=FOUND >>Download(Registry) Retrieving Garrison registry... Downloaded map data. Downloaded component registry. Downloaded security status. 01707_ VTOL Module destroyed. 01711_ Slammed into S-27 Virus. 01711_ Destabilizing: System corrupted (+1). 01712_ Slammed into S-27 Virus. 01712_ Chainsword destroyed. 01712_ System corrupted by crushing effect (+4). 01713_ Slammed into B-75 Beast. 01716_ Slammed into S-27 Virus. 01717_ Acquired 2 matter. 01717_ Slammed into S-27 Virus. 01720_ Beams of light sweep through the air. An alarm sounds. Map ----- +----------------------------------------------------+ | ?????????????????????????????????????????????????? | | ?????????????????????????????????????????????????? | | ?????????????????????????????????????????????????? | | ?????????????????????????????????????????????????? | | ?????????????????????????????????????????????????? | | ?????????????????????????????????????????????????? | | ???????????????????????####??????????????????????? | | ???????????????????????#""#??????????????????????? | | ???????????????????????#T #??????????????????????? | | ???????????????????????#" #??????????????????????? | | ???????????????????????## #??????????????????????? | | ????????????????????????# #??????????????????????? | | ????????????????????????# #?#######??????????????? | | ????????????????????????# #?#"""""#??????????????? | | ????????????####????????# #### ######??????????? | | ????????????#[[#????????# ^ #??????????? | | ????????????#[[#????????# ########### #??????????? | | ????????????#[[####?????# #?????????# #??????????? | | ????#########[[## #?????# ###?????### #?????###### | | ????# + ##????# ####### " #?????# # | | ????# #+####!!# T#????# + + " #?????# < # | | ????# # #??#####"##????# s ### ### " #?????# # | | ????# # #??????# #?????# ###?# #?### #?????# ### | | ?#### # #??????###?????# #???# #???# #?????# #?? | | ?#"## #+#??????????????#s#???# #???# #?????# #?? | | ?#" #??????????????#@#???# #???# #?????# #?? | | ?#" #??????????????# #???# #???# #?????# #?? | | ?#" #??????????????# #???# #???# ##????# #?? | | ?#"## ###???######?????#BB#??# #???# T#????# #?? | | ?#### #?????? ##????#BB#??# #???# ##????# #?? | | ##### ####### #????# ;#??# #???# #?????# #?? | | % % ####??# ;####+##### ####### #?? | | =% %[* #??# "%" #?? | | ##### ####+##*%[# #??# " #?? | | ????# #??# #?# =### #??# ####+#### #######+##?? | | ????# #??# #?# #?# #??# #### #### #?????# #??? | | ????# #??# #?# #?# #??# + ## #?????# #??? | | ????# #### ### #?# #??# ###### ## #?????# #??? | | ????# + + ###+#### #????# ## #?????# #??? | | ????# ### ## # [## ## #????# ## #????##+###? | | ????# #?# #### %## ## ##???# ## #????#!!!!#? | | ????# ###+### #####+## ######^^ !#? | | ????# % ^ % + ^^ #? | | ????# ^^ ######^^ [#? | | ????##+####### ## ## ###########????#[[[[#? | | ?????# #???### ## ## ###????????????######? | | ?????# ##### " " #??????????????????? | | ?????# + " " #??????????????????? | | ?????####### " " ####???????????????? | | ???????????# " " + #???????????????? | +----------------------------------------------------+ Best States ------------- Heat Dissipation 56 Energy Generation 18 Energy Capacity 310 Matter Stores 300 Matter Capacity 450 Sight Range 16 Terrain Scan Density 10 ECM Strength 1 Evasion (%) 65 Particle Charging 15 Authchip Count 1 Item Schematics ----------------- None Robot Schematics ------------------ None Fabricated ------------ Nothing Alien Tech Used ----------------- None Achievements -------------- None Challenges ------------ None Game ------ Seed SubatomicNeutrinoDrive Manual? 0 Play Time 00:37:06 Cumulative 136.5 hours Start 2024.08.30 @ 02:44:56 End 2024.08.30 @ 03:38:35 Sessions 1 Manual Loads 0 Difficulty Rogue Special Mode None Game No. 193 Rogue 193 Adventurer 0 Explorer 0 Win Type - Total 0 Types 0/0/0/0/0/0/0/0/0 Lore% 31 Gallery% 58 Achievement% 39 Wizard Run 0 Options --------- Layout 0 ASCII 0 Keyboard 0 Movement Mouse Keybinds 0 Fullscreen 1 Font 24/Smallcaps Map View 76x50 Zoom Use 0% Tactical HUD 1 Map Filters NONE Filters NONE Steam 1 RUN: 63646ed4-5c58-4e38-9924-a51679ad7197